[Event "BLR-ch 1st Stage Women 2020"]
[Site "Minsk"]
[Date "2020.02.01"]
[Round "4.1"]
[White "Zeliantsova, Kseniya"]
[Black "Beinenson, Katsiaryna"]
[Result "1-0"]
[ECO "B62"]
[WhiteElo "1993"]
[BlackElo "1985"]
[Annotator "NA"]
[PlyCount "80"]
[EventDate "2020.02.01"]
[EventType "swiss"]
[EventCountry "BLR"]
[SourceTitle "playchess.com"]
[Source "ChessBase"]
[SourceQuality "1"]
[TimeControl "40/5400+30:1800+30"]

1. e4 {[%emt 0:00:00]} c5 {[%emt 0:00:00]} 2. Nf3 {[%emt 0:00:00]} Nc6 {[%emt 0:00:00]} 3. d4 {[%emt 0:00:00]} cxd4 {[%emt 0:00:05]} 4. Nxd4 {[%emt 0:00:00]} Nf6 {[%emt 0:06:15]} 5. Nc3 {[%emt 0:00:07]} d6 {[%emt 0:00:14]} 6. Bg5 {[%emt 0:01:16]} e6 {[%emt 0:02:10]} 7. Be2 {[%emt 0:03:42]} Be7 {[%emt 0:01:23]} 8. O-O {[%emt 0:04:40]} h6 {[%emt 0:04:39]} 9. Bh4 {[%emt 0:06:48]} O-O {[%emt 0:18:10]} 10. Bg3 {[%emt 0:06:45]} e5 {[%emt 0:06:14]} 11. Nb3 {[%emt 0:01:18]} Be6 {[%emt 0:02:03]} 12. Bd3 {[%emt 0:08:03]} a6 {[%emt 0:01:56]} 13. f4 {[%emt 0:08:56]} exf4 {[%emt 0:02:46]} 14. Bxf4 {[%emt 0:00:04]} b5 {[%emt 0:03:06]} 15. a3 {[%emt 0:03:07]} Ne5 {[%emt 0:04:21]} 16. Nd4 {[%emt 0:08:54]} Qb6 {[%emt 0:06:45]} 17. Nce2 {[%emt 0:00:30]} Nxd3 {[%emt 0:02:50]} 18. cxd3 {[%emt 0:01:23]} d5 {[%emt 0:02:06]} 19. e5 {[%emt 0:02:08]} Ng4 {[%emt 0:00:47]} 20. Kh1 {[%emt 0:01:01]} g5 {[%emt 0:06:58]} 21. Bd2 {[%emt 0:15:34]} Nxe5 {[%emt 0:02:03]} 22. Bc3 {[%emt 0:00:49]} Ng4 {[%emt 0:01:46]} 23. Qd2 {[%emt 0:08:09]} a5 {[%emt 0:04:20]} 24. b4 {[%emt 0:02:40]} axb4 {[%emt 0:00:07]} 25. axb4 {[%emt 0:00:03]} Rxa1 {[%emt 0:00:09]} 26. Bxa1 {[%emt 0:00:15]} Qd6 {[%emt 0:01:05]} 27. Ng3 {[%emt 0:01:17]} Qxb4 {[%emt 0:08:25]} 28. Qe2 {[%emt 0:05:21]} Bd7 {[%emt 0:05:44]} 29. Ndf5 {[%emt 0:01:32]} Bd6 {[%emt 0:04:27]} 30. h3 {[%emt 0:08:57]} Bxg3 {[%emt 0:02:51]} 31. Nxg3 {[%emt 0:01:33]} Qd6 {[%emt 0:00:17]} 32. Qf3 {[%emt 0:00:23]} Ne5 {[%emt 0:00:43]} 33. Qe3 {[%emt 0:00:10]} f6 {[%emt 0:00:44]} 34. Nh5 {[%emt 0:00:49]} Be8 {[%emt 0:00:44]} 35. Ng3 {[%emt 0:00:28]} Bg6 {[%emt 0:00:37]} 36. Bd4 {[%emt 0:00:35]} Re8 {[%emt 0:00:30]} 37. Qf2 {[%emt 0:00:33]} Nxd3 {[%emt 0:00:28]} 38. Qxf6 {[%emt 0:00:07]} Qxf6 {[%emt 0:00:07]} 39. Rxf6 {[%emt 0:00:03]} Nf4 {[%emt 0:00:11]} 40. Rb6 {[%emt 0:00:00]} h5 {[%emt 0:01:54]} 1-0

[Event "BLR-ch 1st Stage Women 2020"]
[Site "Minsk"]
[Date "2020.02.01"]
[Round "4.2"]
[White "Sukalina, Alina"]
[Black "Staravoitava, Hanna"]
[Result "1-0"]
[ECO "B10"]
[WhiteElo "1622"]
[BlackElo "1747"]
[Annotator "NA"]
[PlyCount "71"]
[EventDate "2020.02.01"]
[EventType "swiss"]
[EventCountry "BLR"]
[SourceTitle "playchess.com"]
[Source "ChessBase"]
[SourceQuality "1"]
[TimeControl "40/5400+30:1800+30"]

1. d4 {[%emt 0:00:00]} d6 {[%emt 0:00:00]} 2. e4 {[%emt 0:01:31]} c6 {[%emt 0:08:06]} 3. c4 {[%emt 0:05:10]} e5 {[%emt 0:00:14]} 4. d5 {[%emt 0:00:35]} f5 {[%emt 0:02:09]} 5. Nc3 {[%emt 0:06:31]} Nf6 {[%emt 0:04:23]} 6. f3 {[%emt 0:08:23]} fxe4 {[%emt 0:12:37]} 7. fxe4 {[%emt 0:00:29]} Be7 {[%emt 0:00:44]} 8. Nf3 {[%emt 0:05:39]} O-O {[%emt 0:00:15]} 9. Bg5 {[%emt 0:23:14]} Na6 {[%emt 0:17:34]} 10. Be2 {[%emt 0:05:00]} Nc5 {[%emt 0:05:21]} 11. Qc2 {[%emt 0:02:51]} Nxd5 {[%emt 0:18:14]} 12. Bxe7 {[%emt 0:05:59]} Nxe7 {[%emt 0:00:06]} 13. O-O-O {[%emt 0:00:09]} Ng6 {[%emt 0:00:41]} 14. b4 {[%emt 0:01:57]} Ne6 {[%emt 0:00:31]} 15. c5 {[%emt 0:00:18]} Nd4 {[%emt 0:01:55]} 16. Nxd4 {[%emt 0:00:10]} exd4 {[%emt 0:00:07]} 17. Rxd4 {[%emt 0:00:10]} Qg5+ {[%emt 0:00:10]} 18. Qd2 {[%emt 0:06:33]} Qxd2+ {[%emt 0:00:17]} 19. Rxd2 {[%emt 0:00:09]} dxc5 {[%emt 0:00:11]} 20. Bc4+ {[%emt 0:00:51]} Kh8 {[%emt 0:00:06]} 21. bxc5 {[%emt 0:00:01]} Ne5 {[%emt 0:00:48]} 22. Bb3 {[%emt 0:01:33]} Bg4 {[%emt 0:05:48]} 23. h3 {[%emt 0:04:21]} Bh5 {[%emt 0:00:06]} 24. g4 {[%emt 0:00:01]} Bg6 {[%emt 0:01:39]} 25. Rhd1 {[%emt 0:00:05]} h5 {[%emt 0:02:48]} 26. g5 {[%emt 0:02:52]} Bf7 {[%emt 0:02:36]} 27. Bxf7 {[%emt 0:08:17]} Rxf7 {[%emt 0:00:07]} 28. Ne2 {[%emt 0:00:17]} Nf3 {[%emt 0:02:13]} 29. g6 {[%emt 0:01:40]} Nxd2 {[%emt 0:00:04]} 30. gxf7 {[%emt 0:00:01]} Nxe4 {[%emt 0:00:09]} 31. Nf4 {[%emt 0:02:08]} g5 {[%emt 0:06:02]} 32. Ne6 {[%emt 0:01:26]} Nf2 {[%emt 0:02:09]} 33. Rd7 {[%emt 0:00:41]} g4 {[%emt 0:03:51]} 34. hxg4 {[%emt 0:05:55]} h4 {[%emt 0:02:13]} 35. Rd2 {[%emt 0:00:33]} Nxg4 {[%emt 0:01:17]} 36. Rd4 {[%emt 0:00:26]} 1-0

[Event "BLR-ch 1st Stage Women 2020"]
[Site "Minsk"]
[Date "2020.02.01"]
[Round "5.1"]
[White "Sukalina, Alina"]
[Black "Zeliantsova, Kseniya"]
[Result "0-1"]
[ECO "A53"]
[WhiteElo "1622"]
[BlackElo "1993"]
[Annotator "NA"]
[PlyCount "92"]
[EventDate "2020.02.01"]
[EventType "swiss"]
[EventCountry "BLR"]
[SourceTitle "playchess.com"]
[Source "ChessBase"]
[SourceQuality "1"]
[TimeControl "40/5400+30:1800+30"]

1. d4 {[%emt 0:00:00]} Nf6 {[%emt 0:00:00]} 2. c4 {[%emt 0:00:11]} d6 {[%emt 0:00:00]} 3. Nf3 {[%emt 0:02:39]} Bg4 {[%emt 0:00:00]} 4. e3 {[%emt 0:03:00]} Nbd7 {[%emt 0:00:00]} 5. Be2 {[%emt 0:05:04]} e5 {[%emt 0:00:11]} 6. Nc3 {[%emt 0:01:56]} Be7 {[%emt 0:01:55]} 7. b3 {[%emt 0:02:39]} c6 {[%emt 0:02:33]} 8. Bb2 {[%emt 0:03:06]} e4 {[%emt 0:06:34]} 9. Nd2 {[%emt 0:02:56]} Bxe2 {[%emt 0:00:12]} 10. Qxe2 {[%emt 0:00:15]} Qa5 {[%emt 0:01:33]} 11. a3 {[%emt 0:05:47]} Qf5 {[%emt 0:06:46]} 12. O-O {[%emt 0:01:20]} d5 {[%emt 0:05:43]} 13. cxd5 {[%emt 0:09:18]} cxd5 {[%emt 0:01:06]} 14. f3 {[%emt 0:08:38]} exf3 {[%emt 0:12:21]} 15. Nxf3 {[%emt 0:01:14]} O-O {[%emt 0:03:46]} 16. Ne5 {[%emt 0:08:50]} Qe6 {[%emt 0:01:53]} 17. Nd3 {[%emt 0:02:54]} Bd6 {[%emt 0:02:42]} 18. Nf4 {[%emt 0:08:22]} Bxf4 {[%emt 0:01:39]} 19. Rxf4 {[%emt 0:00:19]} Rfe8 {[%emt 0:00:35]} 20. Re1 {[%emt 0:00:14]} Nf8 {[%emt 0:01:49]} 21. Qf3 {[%emt 0:09:14]} Rad8 {[%emt 0:01:54]} 22. Qe2 {[%emt 0:03:54]} Ng6 {[%emt 0:03:06]} 23. Rff1 {[%emt 0:00:35]} Re7 {[%emt 0:04:04]} 24. h3 {[%emt 0:03:24]} Rde8 {[%emt 0:09:59]} 25. Qf3 {[%emt 0:01:35]} h6 {[%emt 0:05:16]} 26. a4 {[%emt 0:01:23]} a6 {[%emt 0:05:05]} 27. Qg3 {[%emt 0:02:00]} Rc8 {[%emt 0:02:38]} 28. Qf2 {[%emt 0:03:18]} Qb6 {[%emt 0:06:17]} 29. Qf5 {[%emt 0:01:10]} Rd8 {[%emt 0:00:11]} 30. Qc2 {[%emt 0:00:38]} Rc7 {[%emt 0:01:31]} 31. Qd1 {[%emt 0:01:05]} Re7 {[%emt 0:04:19]} 32. Ba3 {[%emt 0:00:29]} Re6 {[%emt 0:00:18]} 33. b4 {[%emt 0:02:25]} Rde8 {[%emt 0:04:19]} 34. Qd3 {[%emt 0:02:09]} Qd6 {[%emt 0:01:05]} 35. Qd2 {[%emt 0:02:13]} a5 {[%emt 0:05:06]} 36. Nb5 {[%emt 0:00:47]} Qg3 {[%emt 0:00:04]} 37. Rf3 {[%emt 0:00:44]} Qg5 {[%emt 0:01:04]} 38. Bc1 {[%emt 0:02:21]} Nh4 {[%emt 0:00:19]} 39. Rff1 {[%emt 0:00:31]} Ne4 {[%emt 0:00:04]} 40. Qa2 {[%emt 0:00:00]} Rg6 {[%emt 0:00:00]} 41. Re2 {[%emt 0:13:02]} Ng3 {[%emt 0:04:30]} 42. Rc2 {[%emt 0:00:51]} Nxf1 {[%emt 0:00:52]} 43. Kxf1 {[%emt 0:00:04]} Rf6+ {[%emt 0:00:16]} 44. Kg1 {[%emt 0:00:53]} Nf3+ {[%emt 0:00:35]} 45. Kh1 {[%emt 0:00:09]} Qg3 {[%emt 0:00:29]} 46. gxf3 {[%emt 0:00:14]} Rxf3 {[%emt 0:00:04]} 0-1

[Event "BLR-ch 1st Stage Women 2020"]
[Site "Minsk"]
[Date "2020.02.01"]
[Round "5.2"]
[White "Beinenson, Katsiaryna"]
[Black "Poliakova, Varvara"]
[Result "1-0"]
[ECO "C54"]
[WhiteElo "1985"]
[BlackElo "2052"]
[Annotator "NA"]
[PlyCount "69"]
[EventDate "2020.02.01"]
[EventType "swiss"]
[EventCountry "BLR"]
[SourceTitle "playchess.com"]
[Source "ChessBase"]
[SourceQuality "1"]
[TimeControl "40/5400+30:1800+30"]

1. e4 {[%emt 0:00:00]} e5 {[%emt 0:00:00]} 2. Nf3 {[%emt 0:00:00]} Nc6 {[%emt 0:00:00]} 3. Bc4 {[%emt 0:00:09]} Bc5 {[%emt 0:00:00]} 4. c3 {[%emt 0:00:10]} Nf6 {[%emt 0:00:04]} 5. d3 {[%emt 0:00:15]} a6 {[%emt 0:00:47]} 6. O-O {[%emt 0:00:43]} Ba7 {[%emt 0:00:57]} 7. Nbd2 {[%emt 0:00:27]} d6 {[%emt 0:00:14]} 8. Bb3 {[%emt 0:00:13]} O-O {[%emt 0:00:24]} 9. h3 {[%emt 0:00:14]} Ne7 {[%emt 0:02:22]} 10. Re1 {[%emt 0:00:53]} Ng6 {[%emt 0:01:41]} 11. Nf1 {[%emt 0:00:55]} h6 {[%emt 0:01:20]} 12. Ng3 {[%emt 0:01:40]} Re8 {[%emt 0:00:54]} 13. Be3 {[%emt 0:02:12]} Bxe3 {[%emt 0:04:18]} 14. fxe3 {[%emt 0:08:22]} d5 {[%emt 0:04:52]} 15. exd5 {[%emt 0:07:11]} Nxd5 {[%emt 0:01:13]} 16. Nh2 {[%emt 0:02:10]} Be6 {[%emt 0:06:53]} 17. Qf3 {[%emt 0:06:32]} c6 {[%emt 0:05:55]} 18. Rad1 {[%emt 0:06:58]} Qb6 {[%emt 0:07:02]} 19. Nf5 {[%emt 0:11:48]} Rad8 {[%emt 0:06:44]} 20. Kh1 {[%emt 0:12:06]} a5 {[%emt 0:04:23]} 21. Rd2 {[%emt 0:07:35]} a4 {[%emt 0:09:30]} 22. Bc4 {[%emt 0:05:16]} a3 {[%emt 0:03:27]} 23. Bb3 {[%emt 0:02:31]} axb2 {[%emt 0:02:50]} 24. Rxb2 {[%emt 0:08:57]} Qa5 {[%emt 0:03:46]} 25. Rc1 {[%emt 0:00:26]} Nxc3 {[%emt 0:03:40]} 26. Bxe6 {[%emt 0:00:36]} Rxe6 {[%emt 0:06:59]} 27. Rxb7 {[%emt 0:00:12]} e4 {[%emt 0:06:15]} 28. Nxh6+ {[%emt 0:01:20]} Kh7 {[%emt 0:01:14]} 29. Qxf7 {[%emt 0:00:59]} Re7 {[%emt 0:01:53]} 30. Rxe7 {[%emt 0:00:21]} Nxe7 {[%emt 0:00:03]} 31. Qxe7 {[%emt 0:02:57]} exd3 {[%emt 0:02:24]} 32. Nf5 {[%emt 0:00:23]} Qxf5 {[%emt 0:04:08]} 33. Qxd8 {[%emt 0:00:07]} Ne4 {[%emt 0:02:08]} 34. Qh4+ {[%emt 0:00:31]} Kg6 {[%emt 0:00:29]} 35. Rxc6+ {[%emt 0:01:48]} 1-0

[Event "BLR-ch 1st Stage Women 2020"]
[Site "Minsk"]
[Date "2020.02.01"]
[Round "5.3"]
[White "Kolosovskaya, Olga"]
[Black "Norman, Kseniya"]
[Result "1-0"]
[ECO "B06"]
[WhiteElo "1719"]
[BlackElo "1730"]
[Annotator "NA"]
[PlyCount "146"]
[EventDate "2020.02.01"]
[EventType "swiss"]
[EventCountry "BLR"]
[SourceTitle "playchess.com"]
[Source "ChessBase"]
[SourceQuality "1"]
[TimeControl "40/5400+30:1800+30"]

1. Nc3 {[%emt 0:00:00]} g6 {[%emt 0:00:00]} 2. e4 {[%emt 0:00:23]} Bg7 {[%emt 0:00:19]} 3. Nf3 {[%emt 0:02:59]} d6 {[%emt 0:00:45]} 4. Bb5+ {[%emt 0:01:01]} Nd7 {[%emt 0:01:10]} 5. O-O {[%emt 0:00:09]} Ngf6 {[%emt 0:01:37]} 6. Re1 {[%emt 0:06:40]} O-O {[%emt 0:02:09]} 7. d4 {[%emt 0:00:38]} a6 {[%emt 0:01:28]} 8. Bc4 {[%emt 0:07:51]} b5 {[%emt 0:05:49]} 9. Bf1 {[%emt 0:19:20]} c5 {[%emt 0:03:52]} 10. e5 {[%emt 0:01:14]} Ne8 {[%emt 0:05:34]} 11. Bg5 {[%emt 0:09:22]} f6 {[%emt 0:03:05]} 12. dxc5 {[%emt 0:06:29]} Nxc5 {[%emt 0:06:33]} 13. exf6 {[%emt 0:06:20]} Nxf6 {[%emt 0:00:47]} 14. a4 {[%emt 0:15:58]} bxa4 {[%emt 0:14:17]} 15. Bc4+ {[%emt 0:00:41]} Kh8 {[%emt 0:01:02]} 16. Nxa4 {[%emt 0:00:37]} Nxa4 {[%emt 0:01:53]} 17. Rxa4 {[%emt 0:00:02]} e5 {[%emt 0:02:57]} 18. Qd2 {[%emt 0:02:44]} Bb7 {[%emt 0:09:20]} 19. Bxf6 {[%emt 0:00:26]} Qxf6 {[%emt 0:00:58]} 20. Bd5 {[%emt 0:00:04]} Bxd5 {[%emt 0:03:03]} 21. Qxd5 {[%emt 0:00:01]} Rfd8 {[%emt 0:01:09]} 22. Nd2 {[%emt 0:05:10]} e4 {[%emt 0:03:46]} 23. Nxe4 {[%emt 0:00:25]} Qe5 {[%emt 0:02:20]} 24. Qxe5 {[%emt 0:01:18]} Bxe5 {[%emt 0:00:03]} 25. b3 {[%emt 0:02:03]} Kg7 {[%emt 0:03:12]} 26. g3 {[%emt 0:00:17]} Rdc8 {[%emt 0:01:33]} 27. Re2 {[%emt 0:00:13]} Rc6 {[%emt 0:02:35]} 28. f4 {[%emt 0:05:13]} Bf6 {[%emt 0:00:06]} 29. Nxf6 {[%emt 0:02:05]} Kxf6 {[%emt 0:00:02]} 30. Rd4 {[%emt 0:00:14]} Rac8 {[%emt 0:01:02]} 31. c4 {[%emt 0:00:32]} Rb8 {[%emt 0:00:26]} 32. Rd3 {[%emt 0:00:24]} Rcb6 {[%emt 0:01:12]} 33. Ree3 {[%emt 0:00:12]} a5 {[%emt 0:00:39]} 34. Kf2 {[%emt 0:02:24]} Ra8 {[%emt 0:00:32]} 35. Kf3 {[%emt 0:01:36]} a4 {[%emt 0:00:15]} 36. bxa4 {[%emt 0:00:06]} Rxa4 {[%emt 0:00:02]} 37. Re4 {[%emt 0:00:58]} Rc6 {[%emt 0:00:29]} 38. Red4 {[%emt 0:00:07]} Raxc4 {[%emt 0:00:48]} 39. Rxc4 {[%emt 0:00:23]} Rxc4 {[%emt 0:00:02]} 40. Rxd6+ {[%emt 0:00:00]} Ke7 {[%emt 0:00:00]} 41. Rb6 {[%emt 0:01:07]} Rc7 {[%emt 0:00:52]} 42. Kg4 {[%emt 0:00:25]} Kf7 {[%emt 0:00:26]} 43. h3 {[%emt 0:01:12]} Kg7 {[%emt 0:00:29]} 44. Rb3 {[%emt 0:00:54]} Ra7 {[%emt 0:01:11]} 45. Kf3 {[%emt 0:00:14]} Re7 {[%emt 0:00:46]} 46. g4 {[%emt 0:00:21]} Kf7 {[%emt 0:00:44]} 47. h4 {[%emt 0:02:44]} Kg7 {[%emt 0:00:39]} 48. Kg3 {[%emt 0:03:12]} Kf7 {[%emt 0:00:23]} 49. Rf3 {[%emt 0:00:11]} Re1 {[%emt 0:00:58]} 50. Rf2 {[%emt 0:01:56]} Re3+ {[%emt 0:01:07]} 51. Rf3 {[%emt 0:00:23]} Re1 {[%emt 0:00:03]} 52. Kg2 {[%emt 0:00:11]} Re4 {[%emt 0:00:31]} 53. h5 {[%emt 0:02:20]} Ra4 {[%emt 0:00:53]} 54. h6 {[%emt 0:03:05]} Rb4 {[%emt 0:00:56]} 55. Kg3 {[%emt 0:00:41]} Rb1 {[%emt 0:00:38]} 56. Rc3 {[%emt 0:02:26]} Rb7 {[%emt 0:01:15]} 57. Kh4 {[%emt 0:01:23]} Ke6 {[%emt 0:10:30]} 58. Rc6+ {[%emt 0:04:32]} Kd7 {[%emt 0:00:37]} 59. Ra6 {[%emt 0:01:13]} Ke7 {[%emt 0:00:15]} 60. Kg5 {[%emt 0:00:20]} Kf7 {[%emt 0:00:39]} 61. Ra8 {[%emt 0:02:20]} Ke6 {[%emt 0:01:25]} 62. Re8+ {[%emt 0:00:52]} Kf7 {[%emt 0:00:36]} 63. Rh8 {[%emt 0:00:17]} Ke6 {[%emt 0:00:28]} 64. f5+ {[%emt 0:00:45]} gxf5 {[%emt 0:00:23]} 65. gxf5+ {[%emt 0:00:02]} Ke5 {[%emt 0:00:31]} 66. Re8+ {[%emt 0:00:05]} Kd6 {[%emt 0:00:59]} 67. Kf6 {[%emt 0:00:14]} Rd7 {[%emt 0:02:13]} 68. Re6+ {[%emt 0:00:29]} Kd5 {[%emt 0:00:22]} 69. Re7 {[%emt 0:00:16]} Rd8 {[%emt 0:01:21]} 70. Rxh7 {[%emt 0:01:33]} Kd6 {[%emt 0:00:38]} 71. Ra7 {[%emt 0:02:38]} Rf8+ {[%emt 0:00:28]} 72. Kg6 {[%emt 0:00:06]} Rg8+ {[%emt 0:00:20]} 73. Rg7 {[%emt 0:00:11]} Kd5 {[%emt 0:36:03]} 1-0

[Event "BLR-ch 1st Stage Women 2020"]
[Site "Minsk"]
[Date "2020.02.01"]
[Round "6.1"]
[White "Zeliantsova, Kseniya"]
[Black "Stsepkina, Yauheniya"]
[Result "1/2-1/2"]
[ECO "B38"]
[WhiteElo "1993"]
[BlackElo "1671"]
[Annotator "NA"]
[PlyCount "163"]
[EventDate "2020.02.01"]
[EventType "swiss"]
[EventCountry "BLR"]
[SourceTitle "playchess.com"]
[Source "ChessBase"]
[SourceQuality "1"]
[TimeControl "40/5400+30:1800+30"]

1. e4 {[%emt 0:00:00]} c5 {[%emt 0:00:00]} 2. Nf3 {[%emt 0:00:00]} Nc6 {[%emt 0:00:00]} 3. d4 {[%emt 0:00:03]} cxd4 {[%emt 0:00:00]} 4. Nxd4 {[%emt 0:00:04]} g6 {[%emt 0:00:00]} 5. c4 {[%emt 0:00:34]} Bg7 {[%emt 0:00:00]} 6. Be3 {[%emt 0:00:10]} Nf6 {[%emt 0:00:05]} 7. Nc3 {[%emt 0:00:13]} d6 {[%emt 0:00:19]} 8. Be2 {[%emt 0:01:00]} O-O {[%emt 0:00:17]} 9. O-O {[%emt 0:00:49]} Bd7 {[%emt 0:00:31]} 10. Qd2 {[%emt 0:01:30]} Nxd4 {[%emt 0:00:44]} 11. Bxd4 {[%emt 0:00:23]} Bc6 {[%emt 0:00:07]} 12. f3 {[%emt 0:01:01]} Nd7 {[%emt 0:00:41]} 13. Bxg7 {[%emt 0:03:51]} Kxg7 {[%emt 0:00:07]} 14. Kh1 {[%emt 0:01:57]} a5 {[%emt 0:14:35]} 15. b3 {[%emt 0:04:58]} Nc5 {[%emt 0:07:15]} 16. Rad1 {[%emt 0:08:55]} b6 {[%emt 0:13:59]} 17. f4 {[%emt 0:07:29]} f6 {[%emt 0:05:22]} 18. Bf3 {[%emt 0:01:50]} Qc7 {[%emt 0:20:17]} 19. e5 {[%emt 0:20:47]} dxe5 {[%emt 0:04:41]} 20. Nb5 {[%emt 0:02:46]} Qb7 {[%emt 0:16:39]} 21. Bxc6 {[%emt 0:01:17]} Qxc6 {[%emt 0:00:05]} 22. fxe5 {[%emt 0:00:04]} fxe5 {[%emt 0:02:56]} 23. Qg5 {[%emt 0:01:15]} Rf6 {[%emt 0:03:13]} 24. Qxe5 {[%emt 0:00:32]} Qe6 {[%emt 0:00:55]} 25. Qb2 {[%emt 0:01:44]} Raf8 {[%emt 0:06:22]} 26. Nc7 {[%emt 0:09:49]} Kg8 {[%emt 0:00:19]} 27. Rg1 {[%emt 0:01:14]} Qf7 {[%emt 0:03:05]} 28. Nd5 {[%emt 0:00:32]} Re6 {[%emt 0:00:51]} 29. Nc3 {[%emt 0:03:35]} Qf6 {[%emt 0:00:26]} 30. Qc2 {[%emt 0:08:04]} Qxc3 {[%emt 0:00:29]} 31. Qxc3 {[%emt 0:00:14]} Ne4 {[%emt 0:00:04]} 32. Qd4 {[%emt 0:01:14]} Nf2+ {[%emt 0:00:27]} 33. Qxf2 {[%emt 0:00:03]} Rxf2 {[%emt 0:00:06]} 34. a3 {[%emt 0:01:02]} Ra2 {[%emt 0:01:10]} 35. a4 {[%emt 0:05:59]} Rb2 {[%emt 0:00:40]} 36. Rd3 {[%emt 0:00:27]} Ree2 {[%emt 0:00:10]} 37. h3 {[%emt 0:02:33]} e5 {[%emt 0:00:16]} 38. Rd7 {[%emt 0:00:00]} e4 {[%emt 0:01:10]} 39. Rf1 {[%emt 0:00:00]} Rxg2 {[%emt 0:00:00]} 40. Rff7 {[%emt 0:00:00]} Rgf2 {[%emt 0:00:00]} 41. Rxf2 {[%emt 0:05:05]} Rxf2 {[%emt 0:05:07]} 42. Rd6 {[%emt 0:01:15]} e3 {[%emt 0:10:52]} 43. Kg1 {[%emt 0:02:20]} Rf3 {[%emt 0:00:57]} 44. Re6 {[%emt 0:05:41]} e2 {[%emt 0:02:02]} 45. Kg2 {[%emt 0:01:56]} Rxb3 {[%emt 0:00:16]} 46. Rxe2 {[%emt 0:00:03]} Rb4 {[%emt 0:05:54]} 47. Rc2 {[%emt 0:03:43]} Rxa4 {[%emt 0:00:57]} 48. c5 {[%emt 0:03:36]} bxc5 {[%emt 0:00:04]} 49. Rxc5 {[%emt 0:00:03]} Kg7 {[%emt 0:02:20]} 50. Rc7+ {[%emt 0:02:45]} Kh6 {[%emt 0:00:57]} 51. Kf3 {[%emt 0:04:18]} Kg5 {[%emt 0:05:22]} 52. Kg3 {[%emt 0:01:21]} Ra3+ {[%emt 0:00:11]} 53. Kg2 {[%emt 0:00:15]} h5 {[%emt 0:01:26]} 54. Rc5+ {[%emt 0:02:07]} Kh6 {[%emt 0:01:13]} 55. h4 {[%emt 0:02:20]} Kg7 {[%emt 0:00:27]} 56. Rc7+ {[%emt 0:00:38]} Kf6 {[%emt 0:00:31]} 57. Rc6+ {[%emt 0:02:02]} Kf5 {[%emt 0:00:56]} 58. Rc5+ {[%emt 0:00:43]} Kg4 {[%emt 0:00:26]} 59. Rc4+ {[%emt 0:00:06]} Kf5 {[%emt 0:00:11]} 60. Rc5+ {[%emt 0:00:02]} Kf6 {[%emt 0:00:14]} 61. Rc6+ {[%emt 0:00:08]} Kg7 {[%emt 0:00:05]} 62. Rc7+ {[%emt 0:00:17]} Kh6 {[%emt 0:00:03]} 63. Ra7 {[%emt 0:00:52]} Ra4 {[%emt 0:01:42]} 64. Kh3 {[%emt 0:00:07]} Ra2 {[%emt 0:00:19]} 65. Kg3 {[%emt 0:00:16]} Ra1 {[%emt 0:00:58]} 66. Kg2 {[%emt 0:00:31]} Ra3 {[%emt 0:00:05]} 67. Kh2 {[%emt 0:00:05]} Ra2+ {[%emt 0:00:55]} 68. Kg3 {[%emt 0:00:15]} Ra4 {[%emt 0:00:07]} 69. Kh3 {[%emt 0:00:06]} Ra2 {[%emt 0:00:26]} 70. Kg3 {[%emt 0:00:27]} Ra3+ {[%emt 0:00:04]} 71. Kg2 {[%emt 0:00:15]} a4 {[%emt 0:01:15]} 72. Kh2 {[%emt 0:00:04]} Ra2+ {[%emt 0:00:41]} 73. Kg3 {[%emt 0:00:16]} a3 {[%emt 0:00:05]} 74. Kh3 {[%emt 0:00:06]} Ra1 {[%emt 0:00:07]} 75. Kg2 {[%emt 0:00:24]} a2 {[%emt 0:00:27]} 76. Kh2 {[%emt 0:00:05]} g5 {[%emt 0:01:20]} 77. Ra6+ {[%emt 0:00:16]} Kg7 {[%emt 0:00:08]} 78. hxg5 {[%emt 0:00:05]} Rb1 {[%emt 0:00:23]} 79. Rxa2 {[%emt 0:00:04]} Rb5 {[%emt 0:00:09]} 80. Kh3 {[%emt 0:00:09]} Rxg5 {[%emt 0:00:14]} 81. Rg2 {[%emt 0:00:15]} Rxg2 {[%emt 0:00:06]} 82. Kxg2 {[%emt 0:00:02]} 1/2-1/2

[Event "BLR-ch 1st Stage Women 2020"]
[Site "Minsk"]
[Date "2020.02.01"]
[Round "6.2"]
[White "Ajusheva, Renata"]
[Black "Beinenson, Katsiaryna"]
[Result "0-1"]
[ECO "D02"]
[WhiteElo "1412"]
[BlackElo "1985"]
[Annotator "NA"]
[PlyCount "64"]
[EventDate "2020.02.01"]
[EventType "swiss"]
[EventCountry "BLR"]
[SourceTitle "playchess.com"]
[Source "ChessBase"]
[SourceQuality "1"]
[TimeControl "40/5400+30:1800+30"]

1. d4 {[%emt 0:00:02]} d5 {[%emt 0:00:00]} 2. Bf4 {[%emt 0:00:07]} Nf6 {[%emt 0:00:04]} 3. Nf3 {[%emt 0:00:12]} c5 {[%emt 0:01:13]} 4. c3 {[%emt 0:00:36]} Nc6 {[%emt 0:00:33]} 5. e3 {[%emt 0:00:06]} Qb6 {[%emt 0:00:31]} 6. Qb3 {[%emt 0:00:06]} c4 {[%emt 0:00:35]} 7. Qxb6 {[%emt 0:00:34]} axb6 {[%emt 0:00:07]} 8. Na3 {[%emt 0:08:53]} Bf5 {[%emt 0:07:07]} 9. Nh4 {[%emt 0:01:14]} Bg6 {[%emt 0:04:50]} 10. Nxg6 {[%emt 0:00:06]} hxg6 {[%emt 0:00:04]} 11. Nc2 {[%emt 0:00:30]} e6 {[%emt 0:03:41]} 12. Be2 {[%emt 0:01:19]} b5 {[%emt 0:02:15]} 13. b4 {[%emt 0:00:33]} Ne4 {[%emt 0:01:01]} 14. a3 {[%emt 0:01:10]} Nxc3 {[%emt 0:00:12]} 15. Bf3 {[%emt 0:01:54]} Be7 {[%emt 0:02:05]} 16. Kd2 {[%emt 0:08:29]} Ne4+ {[%emt 0:02:16]} 17. Ke2 {[%emt 0:04:42]} g5 {[%emt 0:08:55]} 18. Bxe4 {[%emt 0:05:36]} gxf4 {[%emt 0:08:37]} 19. Bf3 {[%emt 0:01:23]} fxe3 {[%emt 0:03:04]} 20. fxe3 {[%emt 0:00:06]} Bd6 {[%emt 0:00:57]} 21. g3 {[%emt 0:06:41]} Kd7 {[%emt 0:02:48]} 22. Kf2 {[%emt 0:03:43]} g5 {[%emt 0:02:04]} 23. h3 {[%emt 0:10:42]} f5 {[%emt 0:04:30]} 24. Rae1 {[%emt 0:05:42]} Rag8 {[%emt 0:03:39]} 25. Reg1 {[%emt 0:06:41]} Ne7 {[%emt 0:04:16]} 26. Ke1 {[%emt 0:06:10]} Rg7 {[%emt 0:04:39]} 27. Kd2 {[%emt 0:03:20]} Rgh7 {[%emt 0:03:18]} 28. Bg2 {[%emt 0:06:59]} Bxg3 {[%emt 0:00:20]} 29. Bxd5 {[%emt 0:01:24]} Nxd5 {[%emt 0:00:17]} 30. Rxg3 {[%emt 0:00:04]} g4 {[%emt 0:00:13]} 31. Ke2 {[%emt 0:00:15]} Nc3+ {[%emt 0:00:48]} 32. Kf1 {[%emt 0:00:24]} Ne4 {[%emt 0:00:06]} 0-1